fUST/lending_fUST_20260117
["ID","MTS","AMOUNT","RATE_DAILY","PERIOD"]
[402322356,1768659040201,-500.0,0.00011801,2]
[402322359,1768659040210,-500.0,0.00011801,2]
[402322361,1768659040220,-500.0,0.00011801,2]
[402322362,1768659040229,-500.0,0.00011801,2]
[402322364,1768659040239,-500.0,0.00011801,2]
[402322366,1768659040248,-500.0,0.00011801,2]
[402322368,1768659040257,-500.0,0.00011801,2]
[402322370,1768659040267,-500.0,0.00011801,2]
[402322373,1768659040276,-500.0,0.00011801,2]
[402322374,1768659040286,-500.0,0.00011801,2]
[402322376,1768659040295,-500.0,0.00011801,2]
[402322379,1768659040305,-500.0,0.00011801,2]
[402322381,1768659040315,-500.0,0.00011801,2]
[402322383,1768659040325,-500.0,0.00011801,2]
[402322384,1768659040334,-500.0,0.00011801,2]
[402322386,1768659040343,-500.0,0.00011801,2]
[402322389,1768659040353,-500.0,0.00011801,2]
[402322391,1768659040362,-500.0,0.00011801,2]
[402322392,1768659040371,-500.0,0.00011801,2]
[402322395,1768659040381,-400.0,0.00011801,2]
[402322396,1768659040390,-500.0,0.00011801,2]
[402322399,1768659040399,-500.0,0.00011801,2]
[402322401,1768659040409,-500.0,0.00011801,2]
[402322403,1768659040419,-500.0,0.00011801,2]
[402322405,1768659040428,-500.0,0.00011801,2]
[402322407,1768659040437,-500.0,0.00011801,2]
[402322409,1768659040447,-500.0,0.00011801,2]
[402322411,1768659040456,-500.0,0.00011801,2]
[402322413,1768659040465,-500.0,0.00011801,2]
[402322415,1768659040475,-500.0,0.00011801,2]
[402322417,1768659040484,-500.0,0.00011801,2]
[402322419,1768659040493,-500.0,0.00011801,2]
[402322420,1768659040502,-500.0,0.00011801,2]
[402322422,1768659040511,-500.0,0.00011802,2]
[402322424,1768659040522,-500.0,0.00011802,2]
[402322426,1768659040532,-500.0,0.00011802,2]
[402322428,1768659040540,-778.0,0.00011802,2]
[402322430,1768659040549,-500.0,0.00011802,2]
[402322432,1768659040558,-500.0,0.00011802,2]
[402322434,1768659040568,-422.56693032,0.00011802,2]
[402322436,1768659040577,-500.0,0.00011802,2]
[402322438,1768659040586,-35934.8483521,0.00011807,2]
[402322441,1768659040597,-151.0,0.000119,2]
[402322442,1768659040606,-151.0,0.000119,2]
[402322445,1768659040616,-151.0,0.000119,2]
[402322447,1768659040625,-151.0,0.000119,2]
[402322448,1768659040635,-151.0,0.000119,2]
[402322451,1768659040646,-151.0,0.000119,2]
[402322453,1768659040655,-500.0,0.00011939,2]
[402322455,1768659040665,-524.59534775,0.00011939,2]
[402322457,1768659040675,-500.0,0.00011939,2]
[402322459,1768659040684,-454.18892172,0.00011939,2]
[402322461,1768659040693,-778.0,0.00011939,2]
[402322463,1768659040702,-556.00368609,0.00011939,2]
[402322465,1768659040711,-500.0,0.00011939,2]
[402322467,1768659040720,-151.0,0.00012,2]
[402322469,1768659040730,-151.0,0.00012,2]
[402322471,1768659040739,-151.0,0.00012,2]
[402322473,1768659040749,-151.0,0.00012,2]
[402322475,1768659040758,-151.0,0.00012,2]
[402322477,1768659040767,-151.0,0.00012,2]
[402322479,1768659040777,-151.0,0.00012,2]
[402322481,1768659040786,-151.0,0.00012,2]
[402322483,1768659040796,-207.69295594,0.0001201,2]
[402322485,1768659040806,-500.0,0.00012076,2]
[402322487,1768659040815,-778.0,0.00012076,2]
[402322489,1768659040825,-500.0,0.00012076,2]
[402322491,1768659040835,-201.43930861,0.00012076,2]
[402322493,1768659040847,-25644.46986047,0.00012092,2]
[402322495,1768659040857,-418.26,0.00012093,2]
[402322497,1768659040867,-151.0,0.000121,2]
[402322499,1768659040876,-151.0,0.000121,2]
[402322501,1768659040888,-151.0,0.000121,2]
[402322503,1768659040898,-151.0,0.000121,2]
[402322505,1768659040908,-151.0,0.000121,2]
[402322507,1768659040918,-151.0,0.000121,2]
[402322509,1768659040929,-151.0,0.000121,2]
[402322511,1768659040938,-151.0,0.000121,2]
[402322513,1768659040948,-151.0,0.000121,2]
[402322515,1768659040958,-151.0,0.000121,2]
[402322517,1768659040969,-151.0,0.000121,2]
[402322519,1768659040978,-151.0,0.000121,2]
[402322521,1768659040988,-323.4756001,0.0001211,2]
[402322523,1768659040999,-500.0,0.0001211,2]
[402322525,1768659041009,-500.0,0.0001211,2]
[402322527,1768659041019,-317.96443435,0.0001211,2]
[402322529,1768659041029,-500.0,0.0001211,2]
[402322531,1768659041040,-500.0,0.0001211,2]
[402322533,1768659041051,-198.04628577,0.0001211,2]
[402322536,1768659041062,-613.0394496,0.0001211,2]
[402322538,1768659041073,-500.0,0.0001211,2]
[402322540,1768659041082,-336.67868581,0.0001211,2]
[402322542,1768659041093,-500.0,0.0001211,2]
[402322544,1768659041103,-500.0,0.0001211,2]
[402322546,1768659041112,-392.16706432,0.0001211,2]
[402322548,1768659041122,-271.33506003,0.00012192,2]
[402322550,1768659041131,-2737.99253309,0.00012193,2]
[402322552,1768659041140,-500.0,0.00012213,2]
[402322554,1768659041150,-778.0,0.00012213,2]
[402322556,1768659041160,-500.0,0.00012213,2]
[402322558,1768659041169,-500.0,0.00012213,2]
[402322560,1768659041179,-935.86,0.00012329,2]
[402322562,1768659041188,-3157.91,0.00012329,2]
[402322564,1768659041197,-2631.59,0.00012329,2]
[402322566,1768659041207,-2192.99,0.00012329,2]
[402322568,1768659041216,-1827.49,0.00012329,2]
[402322570,1768659041226,-1522.91,0.00012329,2]
[402322572,1768659041236,-1269.09,0.00012329,2]
[402322574,1768659041246,-1057.58,0.00012329,2]
[402322576,1768659041257,-881.31,0.00012329,2]
[402322578,1768659041267,-734.43,0.00012329,2]
[402322580,1768659041277,-612.02,0.00012329,2]
[402322582,1768659041287,-510.02,0.00012329,2]
[402322584,1768659041296,-425.02,0.00012329,2]
[402322586,1768659041305,-354.18,0.00012329,2]
[402322588,1768659041315,-295.15,0.00012329,2]
[402322590,1768659041324,-245.96,0.00012329,2]
[402322592,1768659041334,-204.96,0.00012329,2]
[402322595,1768659041344,-170.8,0.00012329,2]
[402322597,1768659041354,-854.05,0.00012329,2]
[402322599,1768659041366,-500.0,0.00012329,2]
[402322601,1768659041375,-500.0,0.00012329,2]
[402322603,1768659041384,-500.0,0.00012329,2]
[402322605,1768659041394,-178.11688368,0.00012329,2]
[402322607,1768659041403,-778.0,0.0001235,2]
[402322609,1768659041413,-500.0,0.0001235,2]
[402322611,1768659041423,-500.0,0.0001235,2]
[402322613,1768659041432,-356.1487554,0.00012399,2]
[402322615,1768659041442,-496.88919964,0.00012427,2]
[402322617,1768659041451,-501.51383145,0.00012427,2]
[402322619,1768659041460,-2006.05532581,0.00012427,2]
[402322621,1768659041470,-1987.55679858,0.00012427,2]
[402322623,1768659041479,-670.6328788,0.00012427,2]
[402322625,1768659041489,-2682.53151518,0.00012427,2]
[402322627,1768659041499,-6029.66021325,0.00012457,2]
[402322629,1768659041508,-500.0,0.00012487,2]
[402322631,1768659041518,-778.0,0.00012487,2]
[402322633,1768659041527,-500.0,0.00012487,2]
[402322635,1768659041536,-500.0,0.00012487,2]
[402322637,1768659041546,-587.0,0.00012571,2]
[402322639,1768659041556,-2351.0,0.00012583,2]
[402322641,1768659041565,-778.0,0.00012624,2]
[402322643,1768659041575,-500.0,0.00012624,2]
[402322645,1768659041585,-500.0,0.00012624,2]
[402322647,1768659041594,-293.12926643,0.00012747,2]
[402322649,1768659041604,-500.0,0.00012761,2]
[402322651,1768659041613,-778.0,0.00012761,2]
[402322653,1768659041623,-500.0,0.00012761,2]
[402322655,1768659041632,-500.0,0.00012761,2]
[402322657,1768659041641,-778.0,0.00012898,2]
[402322659,1768659041651,-500.0,0.00012898,2]
[402322661,1768659041660,-500.0,0.00012898,2]
[402322663,1768659041669,-4940.52682701,0.000129,2]
[402322665,1768659041679,-4940.52682695,0.000129,2]
[402322667,1768659041688,-500.0,0.00013035,2]
[402322669,1768659041697,-778.0,0.00013035,2]
[402322671,1768659041707,-500.0,0.00013035,2]
[402322673,1768659041725,-500.0,0.00013035,2]
[402322675,1768659041741,-4940.52682695,0.00013121,2]
[402322677,1768659041750,-778.0,0.00013172,2]
[402322679,1768659041760,-500.0,0.00013172,2]
[402322681,1768659041769,-500.0,0.00013172,2]
[402322683,1768659041778,-4509.11085859,0.00013174,2]
[402322685,1768659041787,-440.24648614,0.00013273,2]
[402322687,1768659041797,-500.0,0.00013273,2]
[402322689,1768659041807,-500.0,0.00013273,2]
[402322691,1768659041823,-500.0,0.00013273,2]
[402322693,1768659041832,-500.0,0.00013273,2]
[402322695,1768659041845,-500.0,0.00013273,2]
[402322697,1768659041855,-500.0,0.00013273,2]
[402322699,1768659041865,-500.0,0.00013273,2]
[402322701,1768659041874,-500.0,0.00013273,2]
[402322703,1768659041885,-500.0,0.00013273,2]
[402322705,1768659041894,-500.0,0.00013273,2]
[402322707,1768659041905,-500.0,0.00013273,2]
[402322709,1768659041915,-500.0,0.00013273,2]
[402322711,1768659041924,-500.0,0.00013273,2]
[402322713,1768659041934,-500.0,0.00013273,2]
[402322715,1768659041943,-500.0,0.00013273,2]
[402322717,1768659041953,-524.62460419,0.00013273,2]
[402322719,1768659041963,-500.0,0.00013273,2]
[402322721,1768659041973,-500.0,0.00013273,2]
[402322723,1768659041982,-500.0,0.00013273,2]
[402322725,1768659041992,-500.0,0.00013273,2]
[402322727,1768659042001,-500.0,0.00013273,2]
[402322729,1768659042011,-500.0,0.00013273,2]
[402322731,1768659042020,-500.0,0.00013273,2]
[402322733,1768659042031,-158.0,0.00013273,2]
[402322735,1768659042040,-500.0,0.00013273,2]
[402322737,1768659042050,-500.0,0.00013273,2]
[402322739,1768659042059,-500.0,0.00013273,2]
[402322741,1768659042068,-500.0,0.00013273,2]
[402322743,1768659042077,-500.0,0.00013273,2]
[402322745,1768659042087,-500.0,0.00013273,2]
[402322748,1768659042097,-500.0,0.00013309,2]
[402322750,1768659042107,-778.0,0.00013309,2]
[402322752,1768659042117,-500.0,0.00013309,2]
[402322754,1768659042127,-603.5153781,0.00013309,2]
[402322756,1768659042139,-778.0,0.00013446,2]
[402322758,1768659042149,-500.0,0.00013446,2]
[402322794,1768659042465,-500.0,0.00013583,2]
[402322797,1768659042484,-778.0,0.00013583,2]
[402322798,1768659042494,-500.0,0.00013583,2]
[402322801,1768659042504,-398.025611,0.00013673,2]
[402322803,1768659042513,-300.0,0.00013673,2]
[402322804,1768659042522,-500.0,0.00013698,2]
[402322807,1768659042532,-500.0,0.00013698,2]
[402322809,1768659042542,-500.0,0.00013698,2]
[402322811,1768659042551,-500.0,0.00013698,2]
[402322813,1768659042560,-283.56730347,0.00013698,2]
[402322814,1768659042569,-504.02212957,0.00013698,2]
[402322816,1768659042578,-500.0,0.00013698,2]
[402322818,1768659042588,-500.0,0.00013698,2]
[402322820,1768659042597,-500.0,0.00013698,2]
[402322822,1768659042606,-500.0,0.00013698,2]
[402322824,1768659042615,-500.0,0.00013698,2]
[402322826,1768659042624,-500.0,0.00013698,2]
[402322828,1768659042634,-500.0,0.00013698,2]
[402322830,1768659042644,-500.0,0.00013698,2]
[402322832,1768659042653,-500.0,0.00013698,2]
[402322834,1768659042663,-500.0,0.00013698,2]
[402322836,1768659042672,-500.0,0.00013698,2]
[402322838,1768659042682,-500.0,0.00013698,2]
[402322840,1768659042691,-500.0,0.00013698,2]
[402322842,1768659042700,-500.0,0.00013698,2]
[402322844,1768659042709,-649.34424817,0.00013698,2]
[402322846,1768659042719,-500.0,0.00013698,2]
[402322848,1768659042728,-500.0,0.00013698,2]
[402322850,1768659042737,-500.0,0.00013698,2]
[402322852,1768659042747,-500.0,0.00013698,2]
[402322854,1768659042757,-500.0,0.00013698,2]
[402322856,1768659042771,-500.0,0.00013698,2]
[402322858,1768659042786,-500.0,0.00013698,2]
[402322861,1768659042796,-500.0,0.00013698,2]
[402322863,1768659042805,-500.0,0.00013698,2]
[402322865,1768659042814,-500.0,0.00013698,2]
[402322867,1768659042823,-500.0,0.00013698,2]
[402322870,1768659042832,-500.0,0.00013698,2]
[402322873,1768659042844,-500.0,0.00013698,2]
[402322876,1768659042855,-500.0,0.00013698,2]
[402322879,1768659042864,-500.0,0.00013698,2]
[402322881,1768659042873,-500.0,0.00013698,2]
[402322883,1768659042883,-500.0,0.00013698,2]
[402322885,1768659042894,-500.0,0.00013698,2]
[402322887,1768659042903,-500.0,0.00013698,2]
[402322891,1768659042914,-500.0,0.00013698,2]
[402322894,1768659042923,-500.0,0.00013698,2]
[402322897,1768659042932,-500.0,0.00013698,2]
[402322900,1768659042941,-500.0,0.00013698,2]
[402322903,1768659042950,-500.0,0.00013698,2]
[402322906,1768659042959,-500.0,0.00013698,2]
[402322909,1768659042968,-500.0,0.00013698,2]
[402322911,1768659042978,-500.0,0.00013698,2]
[402322915,1768659042987,-611.38007014,0.00013698,2]
[402322917,1768659042997,-500.0,0.00013698,2]
[402322919,1768659043006,-500.0,0.00013698,2]
[402322921,1768659043017,-500.0,0.00013698,2]
[402322922,1768659043026,-500.0,0.00013698,2]
[402322924,1768659043037,-500.0,0.00013698,2]
[402322927,1768659043048,-500.0,0.00013698,2]
[402322929,1768659043057,-500.0,0.00013698,2]
[402322930,1768659043066,-500.0,0.00013698,2]
[402322933,1768659043076,-582.50112986,0.00013698,2]
[402322934,1768659043085,-975.4,0.00013698,2]
[402322937,1768659043095,-975.4,0.00013698,2]
[402322939,1768659043107,-975.4,0.00013698,2]
[402322941,1768659043117,-975.4,0.00013698,2]
[402322943,1768659043127,-975.4,0.00013698,2]
[402322945,1768659043137,-975.4,0.00013698,2]
[402322947,1768659043147,-975.4,0.00013698,2]
[402322949,1768659043157,-975.4,0.00013698,2]
[402322951,1768659043166,-975.4,0.00013698,2]
[402322953,1768659043175,-975.4,0.00013698,2]
[402322955,1768659043184,-975.4,0.00013698,2]
[402322957,1768659043193,-975.4,0.00013698,2]
[402322959,1768659043202,-975.4,0.00013698,2]
[402322961,1768659043211,-975.4,0.00013698,2]
[402322963,1768659043221,-975.4,0.00013698,2]
[402322965,1768659043230,-975.4,0.00013698,2]
[402322967,1768659043239,-975.4,0.00013698,2]
[402322969,1768659043248,-975.4,0.00013698,2]
[402322971,1768659043257,-975.4,0.00013698,2]
[402322973,1768659043267,-975.4,0.00013698,2]
[402322975,1768659043277,-975.4,0.00013698,2]
[402322977,1768659043286,-975.4,0.00013698,2]
[402322979,1768659043295,-975.4,0.00013698,2]
[402322981,1768659043305,-975.56822598,0.00013698,2]
[402322983,1768659043315,-500.0,0.00013698,2]
[402322985,1768659043324,-500.0,0.00013698,2]
[402322987,1768659043333,-500.0,0.00013698,2]
[402322989,1768659043342,-500.0,0.00013698,2]
[402322991,1768659043352,-567.1775226,0.00013698,2]
[402322993,1768659043362,-520.97489012,0.00013698,2]
[402322995,1768659043371,-567.7923432,0.00013698,2]
[402322997,1768659043380,-500.0,0.00013698,2]
[402322999,1768659043389,-500.0,0.00013698,2]
[402323001,1768659043399,-500.0,0.00013698,2]
[402323003,1768659043408,-500.0,0.00013698,2]
[402323005,1768659043417,-500.0,0.00013698,2]
[402323007,1768659043427,-500.0,0.00013698,2]
[402323009,1768659043437,-500.0,0.00013698,2]
[402323011,1768659043446,-500.0,0.00013698,2]
[402323013,1768659043456,-500.0,0.00013698,2]
[402323015,1768659043465,-500.0,0.00013698,2]
[402323017,1768659043475,-500.0,0.00013698,2]
[402323019,1768659043484,-500.0,0.00013698,2]
[402323021,1768659043493,-500.0,0.00013698,2]
[402323023,1768659043503,-500.0,0.00013698,2]
[402323025,1768659043513,-500.0,0.00013698,2]
[402323027,1768659043523,-500.0,0.00013698,2]
[402323029,1768659043532,-500.0,0.00013698,2]
[402323031,1768659043541,-500.0,0.00013698,2]
[402323033,1768659043551,-500.0,0.00013698,2]
[402323035,1768659043561,-436.72021913,0.00013698,2]
[402323037,1768659043571,-1000.0,0.00013698,2]
[402323039,1768659043580,-1000.0,0.00013698,2]
[402323041,1768659043590,-1000.0,0.00013698,2]
[402323043,1768659043599,-1000.0,0.00013698,2]
[402323045,1768659043609,-1000.0,0.00013698,2]
[402323047,1768659043618,-1000.0,0.00013698,2]
[402323049,1768659043627,-1000.0,0.00013698,2]
[402323051,1768659043637,-1019.17213815,0.00013698,2]
[402323053,1768659043646,-500.0,0.00013698,2]
[402323054,1768659043656,-500.0,0.00013698,2]
[402323055,1768659043665,-500.0,0.00013698,2]
[402323056,1768659043675,-500.0,0.00013698,2]
[402323057,1768659043684,-500.0,0.00013698,2]
[402323058,1768659043694,-500.0,0.00013698,2]
[402323059,1768659043703,-500.0,0.00013698,2]
[402323060,1768659043713,-500.0,0.00013698,2]
[402323061,1768659043722,-500.0,0.00013698,2]
[402323062,1768659043732,-500.0,0.00013698,2]
[402323063,1768659043742,-162.00907998,0.00013698,2]
[402323064,1768659043752,-1974.72,0.00013698,2]
[402323065,1768659043761,-1974.72,0.00013698,2]
[402323066,1768659043771,-1974.72,0.00013698,2]
[402323067,1768659043780,-1974.72,0.00013698,2]
[402323068,1768659043789,-1974.72,0.00013698,2]
[402323069,1768659043804,-1974.72,0.00013698,2]
[402323070,1768659043819,-1974.72,0.00013698,2]
[402323071,1768659043830,-1974.72,0.00013698,2]
[402323073,1768659043841,-1974.72,0.00013698,2]
[402323074,1768659043853,-1974.72,0.00013698,2]
[402323075,1768659043862,-1974.72,0.00013698,2]
[402323076,1768659043872,-1974.72,0.00013698,2]
[402323078,1768659043883,-1974.72,0.00013698,2]
[402323080,1768659043893,-1974.72,0.00013698,2]
[402323082,1768659043903,-1974.72,0.00013698,2]
[402323084,1768659043915,-1974.72,0.00013698,2]
[402323086,1768659043926,-1974.72,0.00013698,2]
[402323088,1768659043936,-1974.72,0.00013698,2]
[402323090,1768659043945,-1974.72,0.00013698,2]
[402323092,1768659043956,-1974.72,0.00013698,2]
[402323094,1768659043966,-1974.72,0.00013698,2]
[402323096,1768659043977,-1974.72,0.00013698,2]
[402323098,1768659043987,-1974.72,0.00013698,2]
[402323100,1768659043996,-1974.90222486,0.00013698,2]
[402323102,1768659044006,-505.79259852,0.00013698,2]
[402323104,1768659044016,-500.0,0.00013698,2]
[402323107,1768659044026,-500.0,0.00013698,2]
[402323109,1768659044036,-500.0,0.00013698,2]
[402323111,1768659044046,-500.0,0.00013698,2]
[402323113,1768659044056,-500.0,0.00013698,2]
[402323115,1768659044066,-500.0,0.00013698,2]
[402323117,1768659044076,-500.0,0.00013698,2]
[402323119,1768659044085,-500.0,0.00013698,2]
[402323121,1768659044095,-500.0,0.00013698,2]
[402323123,1768659044106,-500.0,0.00013698,2]
[402323125,1768659044115,-500.0,0.00013698,2]
[402323127,1768659044126,-500.0,0.00013698,2]
[402323129,1768659044135,-619.57929462,0.00013698,2]
[402323131,1768659044145,-58387.6423223,0.00013699,2]
[402323133,1768659044156,-1000.0,0.00013699,2]
[402323135,1768659044166,-500.0,0.00013699,2]
[402323137,1768659044176,-500.0,0.00013699,2]
[402323140,1768659044186,-500.0,0.00013699,2]
[402323142,1768659044196,-500.0,0.00013699,2]
[402323144,1768659044207,-500.0,0.00013699,2]
[402323146,1768659044217,-500.0,0.00013699,2]
[402323149,1768659044227,-500.0,0.00013699,2]
[402323152,1768659044237,-500.0,0.00013699,2]
[402323154,1768659044248,-500.0,0.00013699,2]
[402323157,1768659044258,-500.0,0.00013699,2]
[402323159,1768659044268,-500.0,0.00013699,2]
[402323161,1768659044278,-500.0,0.00013699,2]
[402323163,1768659044288,-500.0,0.00013699,2]
[402323165,1768659044298,-500.0,0.00013699,2]
[402323167,1768659044307,-186.53198003,0.00013699,2]
[402323169,1768659044316,-501.82620036,0.00013699,2]
[402323171,1768659044326,-500.0,0.00013699,2]
[402323173,1768659044336,-158.0,0.00013699,2]
[402323175,1768659044345,-500.0,0.00013699,2]
[402323177,1768659044355,-500.0,0.00013699,2]
[402323179,1768659044373,-622.93942038,0.00013699,2]
[402323181,1768659044384,-500.0,0.00013699,2]
[402323183,1768659044394,-319.988793,0.00013699,2]
[402323185,1768659044404,-198.2,0.00013699,2]
[402323187,1768659044414,-238.2,0.00013699,2]
[402323189,1768659044423,-313.78216061,0.00013699,2]
[402323191,1768659044432,-500.0,0.00013699,2]
[402323193,1768659044442,-502.61209366,0.00013699,2]
[402323195,1768659044452,-500.0,0.00013699,2]
[402323197,1768659044462,-158.0,0.00013699,2]
[402323199,1768659044473,-158.0,0.00013699,2]
[402323201,1768659044482,-500.0,0.00013699,2]
[402323203,1768659044492,-500.0,0.00013699,2]
[402323206,1768659044502,-158.0,0.00013699,2]
[402323208,1768659044511,-155.0,0.00013699,2]
[402323210,1768659044521,-160.0,0.00013699,2]
[402323212,1768659044530,-500.0,0.00013699,2]
[402323214,1768659044540,-500.0,0.00013699,2]
[402323216,1768659044550,-238.0,0.00013699,2]
[402323218,1768659044560,-158.2,0.00013699,2]
[402323220,1768659044571,-158.0,0.00013699,2]
[402323222,1768659044580,-500.0,0.00013699,2]
[402323224,1768659044590,-500.0,0.00013699,2]
[402323226,1768659044600,-260.20000005,0.00013699,2]
[402323228,1768659044609,-500.0,0.00013699,2]
[402323230,1768659044619,-250.52997418,0.00013699,2]
[402323232,1768659044629,-500.0,0.00013699,2]
[402323234,1768659044639,-500.0,0.00013699,2]
[402323237,1768659044649,-500.0,0.00013699,2]
[402323239,1768659044664,-500.0,0.00013699,2]
[402323241,1768659044674,-500.0,0.00013699,2]
[402323243,1768659044685,-160.0,0.00013699,2]
[402323245,1768659044694,-500.0,0.00013699,2]
[402323247,1768659044705,-500.0,0.00013699,2]
[402323249,1768659044715,-500.0,0.00013699,2]
[402323251,1768659044725,-207.07964308,0.00013699,2]
[402323253,1768659044735,-778.0,0.0001372,2]
[402323256,1768659044744,-500.0,0.0001372,2]
[402323258,1768659044754,-4467.530794,0.00013736,2]
[402323260,1768659044764,-10000.0,0.00013775,2]
[402323262,1768659044775,-1974.2,0.00013775,2]
[402323264,1768659044785,-10000.0,0.00013775,2]
[402323266,1768659044795,-10000.0,0.00013775,2]
[402323268,1768659044804,-343.3,0.00013775,2]
[402323270,1768659044814,-10000.0,0.00013803,2]
[402323273,1768659044824,-1308.98,0.00013803,2]
[402323275,1768659044834,-522.04357159,0.00013821,2]
[402323277,1768659044847,-1000.0,0.00013821,2]
[402323279,1768659044857,-374.47725203,0.00013821,2]
[402323296,1768659045012,-1000.0,0.00013821,2]
[402323298,1768659045021,-1000.0,0.00013821,2]
[402323300,1768659045031,-1000.0,0.00013821,2]
[402323302,1768659045041,-1000.0,0.00013821,2]
[402323304,1768659045051,-505.69222847,0.00013821,2]
[402323306,1768659045061,-502.83955258,0.00013821,2]
[402323308,1768659045072,-505.25947973,0.00013821,2]
[402323310,1768659045081,-1000.0,0.00013821,2]
[402323312,1768659045090,-576.76891952,0.00013821,2]
[402323314,1768659045099,-1000.0,0.00013821,2]
[402323316,1768659045108,-166.45896527,0.00013821,2]
[402323318,1768659045117,-453.71259255,0.00013821,2]
[402323320,1768659045126,-1000.0,0.00013821,2]
[402323322,1768659045136,-1000.0,0.00013821,2]
[402323324,1768659045144,-1000.0,0.00013821,2]
[402323326,1768659045153,-1000.0,0.00013821,2]
[402323328,1768659045162,-1000.0,0.00013821,2]
[402323329,1768659045171,-823.0,0.00013823,2]
[402323331,1768659045181,-269.96129392,0.00013837,7]
[402323333,1768659045191,-3292.0,0.00013841,2]
[402323335,1768659045200,-500.0,0.00013857,2]
[402323337,1768659045209,-778.0,0.00013857,2]
[402323339,1768659045218,-500.0,0.00013857,2]
[402323341,1768659045227,-778.0,0.00013994,2]
[402323343,1768659045237,-161.19749952,0.00013994,2]
[402323345,1768659045246,-239.92258785,0.00014056,7]
[402323347,1768659045255,-494.39702115,0.00014131,2]
[402323349,1768659045265,-778.0,0.00014131,2]
[402323351,1768659045275,-100000.0,0.00014152,2]
[402323353,1768659045284,-600.0,0.00014221,2]
[402323355,1768659045293,-1140.95571878,0.00014247,2]
[402323357,1768659045302,-500.85672121,0.00014247,2]
[402323359,1768659045312,-1000.0,0.00014247,2]
[402323361,1768659045320,-431.73453214,0.00014247,2]
[402323363,1768659045330,-310.63775509,0.00014247,2]
[402323365,1768659045339,-1000.0,0.00014247,2]
[402323367,1768659045348,-587.52830239,0.00014247,2]
[402323369,1768659045358,-505.35037186,0.00014247,2]
[402323371,1768659045367,-1000.0,0.00014247,2]
[402323373,1768659045376,-1000.0,0.00014247,2]
[402323375,1768659045385,-194.1362209,0.00014247,2]
[402323377,1768659045395,-502.15537152,0.00014247,2]
[402323379,1768659045404,-1000.0,0.00014247,2]
[402323381,1768659045414,-502.90945713,0.00014247,2]
[402323383,1768659045422,-1000.0,0.00014247,2]
[402323385,1768659045431,-1000.0,0.00014247,2]
[402323387,1768659045444,-1083.81618829,0.00014247,2]
[402323389,1768659045453,-250.0,0.00014247,2]
[402323391,1768659045463,-186.7596,0.00014247,2]
[402323393,1768659045472,-1002.84499725,0.00014247,2]
[402323395,1768659045483,-1000.0,0.00014247,2]
[402323397,1768659045492,-505.85156425,0.00014247,2]
[402323399,1768659045501,-920.73215922,0.00014247,2]
[402323401,1768659045510,-1000.0,0.00014247,2]
[402323403,1768659045519,-1000.0,0.00014247,2]
[402323405,1768659045527,-1000.0,0.00014247,2]
[402323407,1768659045536,-1000.0,0.00014247,2]
[402323409,1768659045547,-1000.0,0.00014247,2]